bitfinex-derivatives/quotes_SOLF0:USTF0_20260107
["timestamp","ask_amount","ask_price","bid_price","bid_amount"]
[1767807180379,2.4256457,136.4,136.33,6.6073]
[1767807180584,2.4256457,136.4,136.34,3.58293373]
[1767807181581,2.4256457,136.4,136.34,10.18973373]
[1767807181779,2.38010865,136.42,136.35,3.40950733]
[1767807182184,2.38010865,136.42,136.36,3.36690691]
[1767807184975,2.38010865,136.42,136.34,3.36690691]
[1767807185579,8.9586213,136.41,136.34,3.36690691]
[1767807186185,2.3550213,136.41,136.34,3.36690691]
[1767807187280,8.9585213,136.41,136.34,3.36690691]
[1767807187579,2.33877741,136.43,136.36,3.36690691]
[1767807188578,8.94177741,136.43,136.36,3.36690691]
[1767807190181,2.33877741,136.43,136.36,3.36690691]
[1767807191592,6.6036,136.41,136.36,3.36690691]
[1767807194988,6.6036,136.41,136.36,0.06086491]
[1767807195385,8.94167741,136.43,136.36,0.06086491]
[1767807195690,3.2701277,136.42,136.36,0.06086491]
[1767807197494,3.2701277,136.49,136.36,0.06086491]
[1767807197695,3.2701277,136.47,136.36,0.06086491]
[1767807198386,3.2701277,136.46,136.37,9.97230691]
[1767807198587,3.2701277,136.46,136.38,3.36690691]
[1767807201390,3.2701277,136.46,136.39,9.97140691]
[1767807202594,3.2701277,136.46,136.37,9.97200691]
[1767807203395,9.8712277,136.46,136.38,6.6048]
[1767807203595,3.2701277,136.45,136.38,6.6048]
[1767807203989,3.2701277,136.45,136.37,3.36690691]
[1767807206294,3.2701277,136.45,136.38,3.36690691]
[1767807207904,6.6006,136.47,136.38,3.36690691]
[1767807208205,3.2701277,136.46,136.38,3.36690691]
[1767807208504,3.2701277,136.46,136.39,3.36690691]
[1767807210100,3.2701277,136.46,136.4,3.36690691]
[1767807210406,3.2701277,136.48,136.4,3.36690691]
[1767807211700,3.2701277,136.48,136.41,3.36690691]
[1767807212310,3.2701277,136.48,136.41,9.97040691]
[1767807212505,3.2701277,136.48,136.42,3.35799818]
[1767807214410,3.2701277,136.48,136.42,9.96099818]
[1767807215114,3.2701277,136.48,136.42,3.35799818]
[1767807216610,3.29751183,136.47,136.39,3.35799818]
[1767807217616,3.29751183,136.47,136.4,9.96189818]
[1767807218115,3.29751183,136.49,136.43,3.35799818]
[1767807218310,3.29751183,136.49,136.43,89.99799818]
[1767807219519,3.29751183,136.49,136.43,3.35799818]
[1767807219825,9.89621183,136.51,136.44,9.95999818]
[1767807220520,6.5992,136.5,136.44,3.35799818]
[1767807221211,3.29751183,136.48,136.4,3.35799818]
[1767807221416,3.29751183,136.48,136.37,3.35799818]
[1767807221612,3.29751183,136.48,136.39,3.35799818]
[1767807222307,3.29751183,136.46,136.39,9.96199818]
[1767807222515,3.29751183,136.46,136.39,3.35799818]
[1767807223319,3.29751183,136.46,136.39,9.96239818]
[1767807225221,3.29751183,136.46,136.39,3.35799818]
[1767807225614,9.89861183,136.46,136.39,3.35799818]
[1767807228223,6.6017,136.45,136.39,3.35799818]
[1767807232429,3.29751183,136.46,136.39,3.35799818]
[1767807233429,3.29751183,136.48,136.39,89.99799818]
[1767807233629,3.29751183,136.48,136.4,3.35799818]
[1767807234031,3.29751183,136.48,136.41,3.35799818]
[1767807234726,6.5996,136.5,136.43,3.35799818]
[1767807235033,9.89711183,136.5,136.43,3.35799818]
[1767807235826,3.29751183,136.5,136.43,3.35799818]
[1767807236026,3.29751183,136.5,136.44,3.35799818]
[1767807236427,9.89571183,136.52,136.44,3.35799818]
[1767807236635,3.29751183,136.51,136.44,3.35799818]
[1767807237629,3.29751183,136.51,136.45,3.35799818]
[1767807238235,3.29751183,136.51,136.46,3.35799818]
[1767807238629,3.29751183,136.51,136.46,9.95909818]
[1767807239333,3.29751183,136.51,136.46,3.35799818]
[1767807241329,3.17717812,136.52,136.46,3.35799818]
[1767807243436,3.17717812,136.52,136.43,3.28556494]
[1767807243628,3.17717812,136.52,136.43,86.72901726]
[1767807244041,3.17717812,136.52,136.31,102.7958]
[1767807244042,3.36612637,136.49,136.31,102.7958]
[1767807244332,3.36612637,136.48,136.31,102.7958]
[1767807244537,9.96772637,136.45,136.35,86.62]
[1767807244725,3.36612637,136.44,136.35,93.2261]
[1767807244929,3.36612637,136.44,136.35,86.62]
[1767807245743,3.36612637,136.44,136.35,89.90556494]
[1767807246534,9.96872637,136.43,136.35,89.90556494]
[1767807246836,3.36612637,136.42,136.35,3.28556494]
[1767807247034,3.36612637,136.42,136.35,89.90556494]
[1767807247229,9.96932637,136.42,136.35,89.90556494]
[1767807247745,9.96932637,136.42,136.35,3.28556494]
[1767807248037,9.96972637,136.41,136.35,3.28556494]
[1767807252340,3.36612637,136.41,136.35,3.28556494]
[1767807255642,3.36612637,136.41,136.34,138.10317524]
[1767807256933,3.36612637,136.41,136.34,141.38874018]
[1767807258045,3.36612637,136.41,136.35,3.28556494]
[1767807259146,3.36612637,136.41,136.35,9.89186494]
[1767807260943,9.96872637,136.43,136.36,3.28556494]
[1767807261148,3.36612637,136.43,136.37,3.28556494]
[1767807262351,9.96872637,136.43,136.37,3.28556494]
[1767807265050,6.6031,136.42,136.37,3.28556494]
[1767807269355,3.36612637,136.42,136.36,86.66]
[1767807269955,106.06682637,136.44,136.37,3.28556494]
[1767807270152,3.36612637,136.44,136.37,3.28556494]
[1767807271251,6.603,136.42,136.37,3.28556494]
[1767807271455,106.05332637,136.46,136.37,3.28556494]
[1767807271754,3.36612637,136.45,136.37,89.94556494]
[1767807272147,6.603,136.42,136.38,3.41904616]
[1767807279264,6.6026,136.43,136.38,3.41904616]
[1767807279653,102.6872,136.46,136.36,86.66]
[1767807279654,3.27052416,136.42,136.36,86.66]
[1767807280254,6.6037,136.41,136.36,86.66]
[1767807281162,9.87422416,136.41,136.36,86.66]
[1767807282065,9.87422416,136.41,136.35,90.07904616]
[1767807282367,3.27052416,136.41,136.35,90.07904616]
[1767807282564,3.27052416,136.41,136.35,3.41904616]
[1767807282961,3.27052416,136.41,136.35,90.07904616]
[1767807283258,3.27052416,136.41,136.35,3.41904616]
[1767807284264,3.27052416,136.41,136.35,90.07904616]
[1767807284467,3.27052416,136.41,136.35,3.41904616]
[1767807284765,3.27052416,136.41,136.35,90.07904616]
[1767807284962,3.27052416,136.41,136.35,3.41904616]
[1767807285160,3.27052416,136.41,136.35,90.07904616]
[1767807285768,3.27052416,136.41,136.35,3.41904616]
[1767807286157,3.27052416,136.41,136.35,90.07904616]
[1767807286563,3.27052416,136.41,136.35,3.41904616]
[1767807287361,3.27052416,136.41,136.35,10.02544616]
[1767807287570,3.27052416,136.41,136.35,96.68544616]
[1767807287756,3.27052416,136.41,136.35,10.02544616]
[1767807288161,3.27052416,136.41,136.35,96.68544616]
[1767807288662,3.27052416,136.41,136.35,10.02544616]
[1767807289271,3.27052416,136.41,136.35,96.68544616]
[1767807289466,3.27052416,136.41,136.35,10.02544616]
[1767807289867,3.27052416,136.41,136.35,96.68544616]
[1767807292570,3.27052416,136.43,136.37,3.41904616]
[1767807293677,3.27052416,136.43,136.37,10.02434616]
[1767807294179,3.27052416,136.43,136.38,3.41904616]
[1767807296788,3.27052416,136.43,136.37,6.6052]
[1767807297084,9.87312416,136.43,136.37,6.6052]
[1767807299286,9.87312416,136.43,136.36,3.41904616]
[1767807299478,9.87312416,136.43,136.36,90.07904616]
[1767807299681,9.87312416,136.43,136.36,3.41904616]
[1767807299892,9.87312416,136.43,136.36,90.07904616]
[1767807300279,9.87312416,136.43,136.37,3.41904616]
[1767807301089,3.27052416,136.43,136.37,3.41904616]
[1767807301484,189.3405,136.47,136.38,3.53612278]
[1767807301485,3.26156542,136.45,136.38,3.53612278]
[1767807301683,3.26156542,136.47,136.38,3.53612278]
[1767807301984,6.6012,136.46,136.4,3.40403969]
[1767807303780,3.26156542,136.47,136.4,3.40403969]
[1767807304085,3.26156542,136.47,136.41,3.40403969]
[1767807304986,9.86226542,136.47,136.41,3.40403969]
[1767807305384,3.26156542,136.47,136.39,86.66]
[1767807305986,3.26156542,136.47,136.4,3.40403969]
[1767807307689,3.24747623,136.46,136.4,3.40403969]
[1767807308294,9.84857623,136.46,136.4,3.40403969]
[1767807312197,3.24747623,136.45,136.38,3.40403969]
[1767807314600,3.24747623,136.45,136.39,3.40403969]
[1767807315800,9.84807623,136.47,136.4,3.40403969]
[1767807317699,9.84807623,136.47,136.4,10.00803969]
[1767807319699,9.84807623,136.47,136.41,3.40403969]
[1767807323213,3.24747623,136.46,136.41,3.40403969]
[1767807323414,3.24747623,136.44,136.37,3.40403969]
[1767807324706,9.84957623,136.44,136.38,3.40403969]
[1767807327706,6.6025,136.43,136.38,3.40403969]
[1767807328109,3.24747623,136.42,136.36,6.6059]
[1767807328308,3.24747623,136.42,136.35,3.40403969]
[1767807329600,9.85067623,136.42,136.35,10.01033969]
[1767807332002,3.3616629,136.41,136.35,10.01033969]
[1767807332200,9.9656629,136.4,136.34,51.46317524]
[1767807332404,3.3616629,136.39,136.34,51.46317524]
[1767807332807,3.3616629,136.39,136.33,3.47758511]
[1767807334107,9.9661629,136.39,136.33,3.47758511]
[1767807334611,9.9656629,136.41,136.33,3.47758511]
[1767807335710,9.9656629,136.41,136.34,10.08448511]
[1767807336901,3.3616629,136.41,136.36,3.47758511]
[1767807337105,6.6029,136.43,136.36,3.47758511]
[1767807337106,9.9645629,136.43,136.36,3.47758511]
[1767807338012,3.3616629,136.43,136.37,3.47758511]
[1767807338807,9.9636629,136.45,136.37,3.47758511]
[1767807339012,3.3616629,136.45,136.37,3.47758511]
[1767807339213,3.3616629,136.45,136.38,3.47758511]
[1767807340713,3.3616629,136.45,136.39,6.6044]
[1767807341518,3.3616629,136.45,136.4,6.6039]
[1767807342420,3.3616629,136.47,136.41,6.6034]
[1767807342812,3.3616629,136.47,136.4,3.47758511]
[1767807343618,3.3616629,136.47,136.38,90.13758511]
[1767807343920,3.3616629,136.47,136.39,3.47758511]
[1767807344712,3.3616629,136.46,136.4,6.604]
[1767807346825,9.9627629,136.46,136.4,6.604]
[1767807347226,9.9627629,136.46,136.39,3.47758511]
[1767807348724,3.3616629,136.45,136.39,3.47758511]
[1767807349925,3.3616629,136.49,136.39,3.47758511]
[1767807350112,3.3616629,136.49,136.41,3.47758511]
[1767807351523,9.9619629,136.48,136.41,3.47758511]
[1767807354226,3.3616629,136.48,136.42,3.47758511]
[1767807355228,6.5996,136.49,136.43,3.47758511]
[1767807355538,3.3616629,136.5,136.43,3.47758511]
[1767807356335,3.3616629,136.49,136.42,86.64]
[1767807357336,3.3616629,136.49,136.42,93.243]
[1767807358140,3.3616629,136.47,136.42,86.64]
[1767807361842,3.3616629,136.47,136.41,96.72108511]
[1767807362947,9.9623629,136.47,136.41,90.11758511]
[1767807363646,10.17164907,136.46,136.41,90.11758511]
[1767807363835,10.17164907,136.46,136.41,3.47758511]
[1767807364142,3.57044907,136.46,136.39,3.65348903]
[1767807365544,6.6021,136.45,136.39,3.65348903]
[1767807369244,3.57044907,136.45,136.38,86.64]
[1767807369443,3.57044907,136.45,136.38,90.29348903]
[1767807370750,3.57044907,136.45,136.38,96.89828903]
[1767807371347,3.57044907,136.44,136.38,86.64]
[1767807371557,3.57044907,136.44,136.34,56.00883034]
[1767807371851,3.57044907,136.42,136.35,6.6063]
[1767807372254,3.57044907,136.42,136.35,10.25978903]
[1767807374255,3.57044907,136.42,136.35,3.65348903]
[1767807375558,10.17354907,136.42,136.35,3.65348903]
[1767807378357,3.57044907,136.41,136.35,3.65348903]
[1767807378847,10.17394907,136.41,136.35,3.65348903]
[1767807379254,3.57044907,136.4,136.33,90.29348903]
[1767807379457,3.57044907,136.4,136.34,3.65348903]
[1767807380559,10.17444907,136.4,136.34,3.65348903]
[1767807381948,6.6046,136.39,136.34,3.65348903]
[1767807383562,6.605,136.38,136.34,3.65348903]
[1767807383764,3.57044907,136.39,136.33,86.64]
[1767807383955,3.57044907,136.39,136.31,3.65348903]
[1767807384556,6.6059,136.37,136.31,3.65348903]
[1767807387262,10.17534907,136.39,136.31,3.65348903]
[1767807387661,3.57044907,136.39,136.31,3.65348903]
[1767807387857,3.57044907,136.37,136.31,3.65348903]
[1767807388060,3.57044907,136.37,136.3,86.66]
[1767807388265,3.57044907,136.37,136.3,90.31348903]
[1767807388968,3.57044907,136.37,136.31,3.65348903]
[1767807389763,10.17594907,136.37,136.31,3.65348903]
[1767807390074,3.57044907,136.37,136.31,3.65348903]
[1767807391570,10.17594907,136.37,136.31,3.65348903]
[1767807393075,6.606,136.36,136.31,3.65348903]
[1767807393878,3.45433606,136.35,136.3,6.6088]
[1767807394070,3.45433606,136.35,136.29,90.16458329]
[1767807395680,3.45433606,136.35,136.29,96.77388329]
[1767807396282,3.45433606,136.35,136.3,10.09338329]
[1767807397481,3.45433606,136.35,136.3,3.48458329]
[1767807401787,3.45433606,136.35,136.3,10.09338329]
[1767807409900,3.45433606,136.35,136.3,3.48458329]
[1767807411590,3.45433606,136.35,136.3,10.09338329]
[1767807416909,3.45433606,136.35,136.3,3.48458329]
[1767807418310,6.606,136.36,136.3,3.48458329]
[1767807419612,10.06033606,136.36,136.3,3.48458329]
[1767807421517,3.45433606,136.36,136.3,10.09298329]
[1767807421816,115.9073,136.44,136.31,3.46673112]
[1767807421817,3.49213816,136.43,136.31,3.46673112]
[1767807422011,3.51195211,136.4,136.31,3.46673112]
[1767807422210,3.51195211,136.37,136.31,3.46673112]
[1767807424008,3.51195211,136.36,136.29,3.72472874]
[1767807424209,3.51195211,136.36,136.27,90.42472874]
[1767807424409,3.51195211,136.36,136.28,3.72472874]
[1767807425617,3.51195211,136.35,136.28,10.33442874]
[1767807425810,3.51195211,136.35,136.29,3.72472874]
[1767807429720,3.51195211,136.34,136.25,3.72472874]
[1767807429923,3.51195211,136.34,136.26,3.72472874]
[1767807430323,3.51195211,136.33,136.26,3.72472874]
[1767807431217,3.51195211,136.32,136.26,3.72472874]
[1767807432617,3.51195211,136.31,136.24,90.42472874]
[1767807433619,10.12045211,136.31,136.24,90.42472874]
[1767807435323,10.12045211,136.31,136.25,3.72472874]
[1767807439524,10.11975211,136.33,136.25,3.72472874]
[1767807440121,3.51195211,136.33,136.25,3.72472874]
[1767807441725,6.6079,136.32,136.26,3.72472874]
[1767807444325,10.12035211,136.31,136.24,90.42472874]
[1767807444527,10.12035211,136.31,136.25,3.72472874]
[1767807445121,6.6077,136.33,136.25,6.6112]
[1767807445318,3.51195211,136.34,136.26,3.72472874]
[1767807446521,6.6075,136.33,136.26,10.33552874]
[1767807446722,6.6075,136.33,136.27,3.72472874]
[1767807449329,3.51195211,136.34,136.27,3.72472874]
[1767807449727,3.51195211,136.34,136.25,3.72472874]
[1767807449924,3.51195211,136.31,136.25,3.72472874]
[1767807450328,3.51195211,136.31,136.26,3.72472874]
[1767807464344,3.56086629,136.32,136.27,3.69248351]
[1767807464546,3.56086629,136.32,136.26,6.6107]
[1767807464747,3.56086629,136.31,136.25,3.69248351]
[1767807464945,3.56086629,136.31,136.25,10.30378351]
[1767807465248,3.56086629,136.3,136.24,90.39248351]
[1767807465753,3.56086629,136.29,136.24,3.69248351]
[1767807466455,3.56086629,136.28,136.22,3.69248351]
[1767807466948,3.56086629,136.28,136.22,10.30518351]
[1767807467454,3.56086629,136.28,136.22,3.69248351]
[1767807469548,3.56086629,136.28,136.22,10.30518351]
[1767807472455,3.56086629,136.28,136.22,3.69248351]
[1767807473257,10.17066629,136.28,136.22,3.69248351]
[1767807473858,3.56086629,136.27,136.22,3.69248351]
[1767807474650,10.17116629,136.27,136.21,86.72]
[1767807474852,3.56086629,136.26,136.21,86.72]
[1767807475047,3.56086629,136.26,136.21,90.41248351]
[1767807475251,3.56086629,136.26,136.21,86.72]
[1767807475458,3.56086629,136.26,136.19,3.69248351]
[1767807476560,3.56086629,136.25,136.19,3.69248351]
[1767807477150,3.56086629,136.25,136.19,10.30658351]
[1767807477861,3.56086629,136.25,136.19,3.69248351]
[1767807479365,3.56086629,136.27,136.2,3.69248351]
[1767807480763,10.17166629,136.26,136.2,3.69248351]
[1767807481761,102.8236,136.28,136.17,93.3548]
[1767807482073,3.29437191,136.24,136.14,3.35996765]
[1767807482569,3.29437191,136.22,136.15,3.35996765]
[1767807483060,102.8393,136.26,136.15,3.35996765]
[1767807483061,9.90617191,136.24,136.15,3.35996765]
[1767807483265,3.29437191,136.23,136.15,3.35996765]
[1767807483465,3.29437191,136.23,136.16,3.35996765]
[1767807483665,3.29437191,136.23,136.17,3.35996765]
[1767807484557,9.90667191,136.23,136.17,3.35996765]
[1767807488965,6.6127,136.22,136.17,3.35996765]
[1767807490777,3.29437191,136.23,136.17,3.35996765]
[1767807491278,9.90687191,136.23,136.17,3.35996765]
[1767807493377,6.6125,136.23,136.17,3.35996765]
[1767807494270,6.6118,136.24,136.17,3.35996765]
[1767807494476,3.29863973,136.26,136.18,3.50461925]
[1767807495281,3.29863973,136.26,136.2,3.50461925]
[1767807495676,9.90873973,136.28,136.21,3.50461925]
[1767807498082,3.29863973,136.27,136.21,3.50461925]
[1767807498280,3.29863973,136.26,136.2,86.78]
[1767807499381,3.29863973,136.26,136.2,93.3936]
[1767807500486,3.29863973,136.26,136.2,96.89821925]
[1767807501788,3.29863973,136.26,136.21,3.50461925]
[1767807503789,9.90843973,136.28,136.21,3.50461925]
[1767807504493,3.29863973,136.27,136.21,3.50461925]
[1767807505191,6.6093,136.29,136.22,6.6126]
[1767807505392,3.29863973,136.29,136.23,3.50461925]
[1767807509485,6.6089,136.3,136.24,3.50461925]
[1767807509692,3.29863973,136.31,136.24,3.50461925]
[1767807510088,9.90713973,136.31,136.25,3.50461925]
[1767807515204,3.29863973,136.31,136.26,3.42393589]
[1767807516803,3.29863973,136.31,136.26,10.03473589]
[1767807517003,3.17200749,136.33,136.27,3.42393589]
[1767807519704,3.17200749,136.33,136.27,10.03423589]
[1767807520500,3.17200749,136.33,136.28,3.42393589]
[1767807520696,3.17200749,136.33,136.26,90.16393589]
[1767807521104,3.17200749,136.33,136.27,3.42393589]
[1767807521411,3.17200749,136.33,136.28,6.6098]
[1767807522405,3.17200749,136.33,136.29,6.6093]
[1767807524308,3.17200749,136.36,136.32,6.6077]
[1767807524804,3.17200749,136.36,136.31,6.6083]
[1767807525201,3.17200749,136.36,136.3,3.42393589]
[1767807528115,3.57099749,136.38,136.3,3.42393589]
[1767807529115,3.17200749,136.37,136.3,3.42393589]
[1767807530309,9.77750749,136.37,136.3,3.42393589]
[1767807530714,3.17200749,136.36,136.3,3.42393589]
[1767807532115,3.17200749,136.35,136.29,86.72]
[1767807532815,3.17200749,136.35,136.29,90.14393589]
[1767807533416,9.77840749,136.35,136.29,90.14393589]
[1767807533617,9.77840749,136.35,136.27,3.42393589]
[1767807533618,3.17200749,136.35,136.27,3.42393589]
[1767807533819,3.17200749,136.35,136.27,90.14393589]
[1767807534117,3.17200749,136.35,136.27,3.42393589]
[1767807534311,6.6075,136.33,136.27,3.42393589]
[1767807540723,102.7551,136.37,136.26,90.14393589]
[1767807540724,3.17200749,136.35,136.26,90.14393589]
[1767807540924,3.17200749,136.35,136.27,3.1939431]
[1767807541616,3.17200749,136.35,136.28,3.1939431]
[1767807541821,3.14937325,136.37,136.28,3.1939431]
[1767807542013,3.14937325,136.37,136.3,3.08883068]
[1767807543622,3.14937325,136.37,136.31,9.69713068]
[1767807544023,0.39899,136.38,136.32,3.08883068]
[1767807544323,0.39899,136.38,136.33,3.08883068]
[1767807546229,0.39899,136.38,136.33,9.69623068]
[1767807549425,0.39899,136.38,136.34,6.6069]
[1767807549934,0.39899,136.38,136.33,9.69623068]
[1767807550828,3.54836325,136.38,136.32,93.3279]
[1767807551430,3.14937325,136.37,136.3,6.6084]
[1767807552637,3.14937325,136.36,136.3,6.6084]
[1767807553234,3.14937325,136.36,136.29,3.08883068]
[1767807554533,3.54836325,136.38,136.29,3.08883068]
[1767807554926,3.54836325,136.38,136.31,3.08883068]
[1767807559240,3.54836325,136.38,136.31,9.69723068]
[1767807559435,3.54836325,136.38,136.32,3.08883068]
[1767807561743,0.39899,136.38,136.33,3.08883068]
[1767807562331,0.39899,136.38,136.34,3.08883068]
[1767807562538,3.14937325,136.42,136.34,3.08883068]
[1767807562839,3.14937325,136.42,136.35,3.08883068]
[1767807563641,3.14937325,136.42,136.35,9.69513068]
[1767807565846,3.14937325,136.42,136.36,6.6059]
[1767807568351,3.14937325,136.42,136.37,6.6053]
[1767807569251,3.14937325,136.42,136.35,3.08883068]
[1767807569745,3.14937325,136.41,136.34,86.7]
[1767807569948,3.14937325,136.41,136.33,3.08883068]
[1767807570143,3.14937325,136.41,136.31,3.08883068]
[1767807571253,3.14937325,136.38,136.31,3.08883068]
[1767807572542,3.23454524,136.37,136.31,3.08883068]
[1767807573652,3.23454524,136.36,136.29,3.1370923]
[1767807581259,9.84044524,136.36,136.29,3.1370923]
[1767807581959,9.84044524,136.36,136.3,3.1370923]
[1767807584365,3.23454524,136.36,136.31,3.1370923]
[1767807586466,9.84044524,136.36,136.31,3.1370923]
[1767807591876,9.84094524,136.35,136.29,3.1370923]
[1767807592076,3.23454524,136.35,136.29,3.1370923]
[1767807592278,3.23454524,136.37,136.29,3.1370923]
[1767807592670,3.23454524,136.37,136.3,3.1370923]
[1767807593681,9.84004524,136.37,136.3,3.1370923]
[1767807594178,3.23454524,136.36,136.3,3.1370923]
[1767807600990,3.23454524,136.36,136.3,9.7458923]
[1767807601189,3.0563904,136.38,136.31,2.99498861]
[1767807601486,3.0563904,136.38,136.29,96.30388861]
[1767807602680,9.73818761,136.36,136.29,96.30388861]
[1767807605996,9.73818761,136.36,136.3,2.95625504]
[1767807606194,3.13218761,136.33,136.27,2.95625504]
[1767807606595,3.13218761,136.33,136.24,2.95625504]
[1767807606796,3.13218761,136.33,136.25,2.95625504]
[1767807606995,3.13218761,136.33,136.25,9.56745504]
[1767807607789,3.13218761,136.32,136.26,2.95625504]
[1767807608599,3.13218761,136.32,136.26,9.56705504]
[1767807609394,9.74018761,136.32,136.26,2.95625504]
[1767807610694,3.13218761,136.32,136.26,2.95625504]
[1767807611497,3.13218761,136.32,136.24,89.65625504]
[1767807611698,9.74118761,136.3,136.24,2.95625504]
[1767807612201,3.13218761,136.3,136.24,2.95625504]
[1767807613997,3.13218761,136.33,136.26,2.95625504]
[1767807614199,3.13218761,136.33,136.26,12.00823437]
[1767807615604,9.73958761,136.33,136.26,12.00823437]
[1767807615998,3.13218761,136.32,136.26,9.05197933]
[1767807616200,3.13218761,136.31,136.25,9.05197933]
[1767807616902,3.13218761,136.31,136.25,12.00823437]
[1767807617204,3.13218761,136.31,136.26,9.05197933]
[1767807617205,3.13218761,136.3,136.26,9.05197933]
[1767807617406,3.13218761,136.3,136.25,12.00823437]
[1767807618300,3.13218761,136.3,136.25,2.95625504]
[1767807618500,3.13218761,136.3,136.25,12.00823437]
[1767807619108,3.13218761,136.3,136.25,2.95625504]
[1767807619799,3.13218761,136.3,136.25,12.00823437]
[1767807621406,3.13218761,136.3,136.25,2.95625504]
[1767807622312,3.13218761,136.3,136.25,12.00823437]
[1767807623916,3.13218761,136.3,136.24,12.00823437]
[1767807624110,3.13218761,136.34,136.25,2.95625504]
[1767807624910,3.13218761,136.34,136.25,12.00823437]
[1767807625107,3.13218761,136.34,136.26,2.95625504]
[1767807625702,6.6079,136.32,136.26,2.95625504]
[1767807627216,3.13218761,136.33,136.27,2.95625504]
[1767807627911,9.73898761,136.35,136.28,2.95625504]
[1767807629415,6.6069,136.34,136.28,2.95625504]
[1767807629614,9.73908761,136.34,136.28,2.95625504]
[1767807630917,9.73958761,136.33,136.27,95.77197933]
[1767807631118,3.13218761,136.32,136.26,9.05197933]
[1767807631419,3.13218761,136.32,136.25,95.77197933]
[1767807631619,9.74058761,136.31,136.25,95.77197933]
[1767807632010,9.74058761,136.31,136.25,9.05197933]
[1767807633514,9.74058761,136.31,136.25,12.24098752]
[1767807634218,6.6079,136.33,136.26,3.18900819]
[1767807634523,9.61474923,136.33,136.26,3.18900819]
[1767807634925,3.00684923,136.32,136.26,3.18900819]
[1767807636022,3.00684923,136.32,136.26,12.24098752]
[1767807636321,9.61474923,136.32,136.26,12.24098752]
[1767807636522,9.61474923,136.32,136.26,3.18900819]
[1767807642230,3.00684923,136.31,136.25,95.77197933]
[1767807642427,3.00684923,136.31,136.25,86.72]
[1767807643630,6.6093,136.3,136.25,86.72]
[1767807645633,6.6093,136.3,136.25,89.90900819]
[1767807646038,6.6093,136.3,136.25,98.96098752]
[1767807650045,9.61614923,136.3,136.25,95.77197933]
[1767807650245,9.61614923,136.3,136.25,86.72]
[1767807650843,3.00684923,136.29,136.23,12.24098752]
[1767807651543,6.61,136.28,136.23,12.24098752]
[1767807651736,9.61684923,136.28,136.23,12.24098752]
[1767807655240,3.00684923,136.28,136.22,95.77197933]
[1767807655433,3.00684923,136.28,136.2,13.57491525]
[1767807655434,3.00684923,136.27,136.2,13.57491525]
[1767807655639,3.00684923,136.27,136.21,9.0943352]
[1767807656039,9.61854923,136.25,136.21,9.0943352]
[1767807656241,9.61854923,136.25,136.19,89.92900819]
[1767807659254,6.6108,136.27,136.2,3.18900819]
[1767807661048,6.6096,136.29,136.2,3.18900819]
[1767807661755,6.6096,136.29,136.22,3.05627497]
[1767807661960,3.18091519,136.3,136.22,3.05627497]
[1767807663561,6.6095,136.29,136.22,3.05627497]
[1767807666454,3.07577494,136.27,136.22,3.05627497]
[1767807666649,6.6098,136.28,136.22,3.05627497]
[1767807666854,3.07577494,136.29,136.22,3.05627497]
[1767807667559,9.68507494,136.29,136.22,3.05627497]
[1767807668055,3.07577494,136.28,136.22,3.05627497]
[1767807668651,3.07577494,136.28,136.22,5.23018998]
[1767807671657,3.07577494,136.28,136.22,3.05627497]
[1767807671858,3.07577494,136.28,136.21,88.91391501]
[1767807672053,3.07577494,136.28,136.21,91.94554791]
[1767807672560,3.07577494,136.28,136.21,89.7716329]
[1767807673562,6.6103,136.27,136.21,89.7716329]
[1767807673859,3.07577494,136.26,136.21,89.7716329]
[1767807674054,6.6113,136.25,136.21,86.74]
[1767807674255,6.6113,136.25,136.18,13.57491525]
[1767807674256,3.07577494,136.24,136.18,86.74]
[1767807674455,3.07577494,136.24,136.18,89.7716329]
[1767807675260,3.07577494,136.24,136.17,51.0654344]
[1767807675457,3.07577494,136.24,136.17,3.0316329]
[1767807676557,6.6123,136.23,136.17,3.0316329]
[1767807677963,3.07577494,136.24,136.17,3.0316329]
[1767807678166,6.6116,136.25,136.18,3.0316329]
[1767807678360,6.6116,136.25,136.18,89.7916329]
[1767807678555,6.6116,136.25,136.19,3.0316329]
[1767807680471,6.6108,136.26,136.2,3.0316329]
[1767807680670,3.07577494,136.28,136.21,3.0316329]
[1767807681562,6.6103,136.27,136.21,3.0316329]
[1767807684174,3.07577494,136.25,136.17,3.0316329]
[1767807684373,3.07577494,136.25,136.17,89.7916329]
[1767807684971,9.68777494,136.24,136.17,9.6466329]
[1767807685374,3.07577494,136.24,136.17,9.6466329]
[1767807685570,3.07577494,136.24,136.18,9.07812825]
[1767807685874,3.07577494,136.23,136.17,9.07812825]
[1767807686063,3.07577494,136.23,136.16,95.83812825]
[1767807686263,3.07577494,136.23,136.16,9.07812825]
[1767807686769,3.07577494,136.22,136.16,9.07812825]
[1767807687169,3.07577494,136.22,136.15,98.86976115]
[1767807688271,3.07577494,136.21,136.15,98.86976115]
[1767807692480,9.68897494,136.21,136.15,98.86976115]
[1767807694680,102.8457,136.25,136.15,86.76]
[1767807694681,2.90709084,136.2,136.15,86.76]